[Event "*** SCC Grand Prix: Titled Tuesday Blitz"]
[Site "Chess.com"]
[Date "2020.09.29"]
[Round "1"]
[White "Sjakkerntobi"]
[Black "Kira170"]
[Result "0-1"]
[WhiteElo "2400"]
[BlackElo "2790"]
[TimeControl "180+1"]
[EndTime "10:05:55 PDT"]
[Termination "Kira170 won by resignation"]

1. e4 {[%clk 0:03:00.9]} 1... e6 {[%clk 0:02:58.6]} 2. d4 {[%clk 0:03:00.7]}
2... d5 {[%clk 0:02:58.5]} 3. Nc3 {[%clk 0:03:00.8]} 3... Nf6 {[%clk 0:02:58.5]}
4. e5 {[%clk 0:03:00.6]} 4... Nfd7 {[%clk 0:02:58.6]} 5. f4 {[%clk 0:03:01.2]}
5... c5 {[%clk 0:02:59]} 6. Nf3 {[%clk 0:03:01.5]} 6... Nc6 {[%clk 0:02:59.5]}
7. Be3 {[%clk 0:03:00.7]} 7... Qb6 {[%clk 0:02:59.8]} 8. Qd2 {[%clk 0:02:51.3]}
8... Qxb2 {[%clk 0:02:57.5]} 9. Rb1 {[%clk 0:02:44.1]} 9... Qa3 {[%clk
0:02:50.5]} 10. Nb5 {[%clk 0:02:43.4]} 10... Qxa2 {[%clk 0:02:49.2]} 11. Rd1
{[%clk 0:02:36.3]} 11... Rb8 {[%clk 0:02:47.7]} 12. f5 {[%clk 0:02:06.2]} 12...
cxd4 {[%clk 0:02:28.4]} 13. Nfxd4 {[%clk 0:02:04.5]} 13... Bb4 {[%clk
0:02:20.9]} 14. Nc7+ {[%clk 0:01:51.2]} 14... Kd8 {[%clk 0:01:58]} 15. Bg5+
{[%clk 0:01:30.6]} 15... Kxc7 {[%clk 0:01:57.4]} 16. Nb5+ {[%clk 0:01:29.8]}
16... Kb6 {[%clk 0:01:53.8]} 17. Be3+ {[%clk 0:01:26.2]} 17... Ka5 {[%clk
0:01:39.2]} 18. c3 {[%clk 0:01:21]} 18... Qxd2+ {[%clk 0:01:38.8]} 19. Bxd2
{[%clk 0:01:21.9]} 19... Bc5 {[%clk 0:01:36.9]} 20. Ra1+ {[%clk 0:01:18.1]}
20... Kb6 {[%clk 0:01:36.8]} 21. Rb1 {[%clk 0:01:15.6]} 21... a6 {[%clk
0:01:32.1]} 22. fxe6 {[%clk 0:00:43.1]} 22... fxe6 {[%clk 0:01:30.8]} 23. Nd4+
{[%clk 0:00:39.1]} 23... Ka7 {[%clk 0:01:25.6]} 24. Nxe6 {[%clk 0:00:39.6]}
24... Re8 {[%clk 0:01:18.7]} 25. Nxc5 {[%clk 0:00:39.4]} 25... Nxc5 {[%clk
0:01:17.5]} 26. Be3 {[%clk 0:00:36.5]} 26... Rxe5 {[%clk 0:01:17.2]} 27. Kd2
{[%clk 0:00:36.2]} 27... b6 {[%clk 0:01:16.4]} 28. Be2 {[%clk 0:00:25.8]} 28...
Bf5 {[%clk 0:01:15.1]} 29. Ra1 {[%clk 0:00:19.4]} 29... Rbe8 {[%clk 0:01:13.6]}
30. Bxc5 {[%clk 0:00:19.4]} 30... Rxe2+ {[%clk 0:01:13.2]} 0-1

[Event "*** SCC Grand Prix: Titled Tuesday Blitz"]
[Site "Chess.com"]
[Date "2020.09.29"]
[Round "1"]
[White "kleopl"]
[Black "jamalm2"]
[Result "1-0"]
[WhiteElo "2460"]
[BlackElo "1715"]
[TimeControl "180+1"]
[EndTime "10:06:00 PDT"]
[Termination "kleopl won by checkmate"]

1. c4 {[%clk 0:02:46.2]} 1... c6 {[%clk 0:02:54.8]} 2. Nc3 {[%clk 0:02:44.4]}
2... d5 {[%clk 0:02:54.3]} 3. e3 {[%clk 0:02:41.6]} 3... Nf6 {[%clk 0:02:54]} 4.
Nf3 {[%clk 0:02:39.4]} 4... Bf5 {[%clk 0:02:45.1]} 5. b3 {[%clk 0:02:38.2]} 5...
e6 {[%clk 0:02:40.6]} 6. Bb2 {[%clk 0:02:37.3]} 6... Nbd7 {[%clk 0:02:40.1]} 7.
Be2 {[%clk 0:02:36]} 7... Bd6 {[%clk 0:02:38.1]} 8. O-O {[%clk 0:02:35.1]} 8...
O-O {[%clk 0:02:37.2]} 9. Rc1 {[%clk 0:02:34.5]} 9... dxc4 {[%clk 0:02:34.2]}
10. bxc4 {[%clk 0:02:30.5]} 10... e5 {[%clk 0:02:30.6]} 11. d4 {[%clk
0:02:27.8]} 11... e4 {[%clk 0:02:29.5]} 12. Nd2 {[%clk 0:02:27]} 12... Bg6
{[%clk 0:02:27.5]} 13. Re1 {[%clk 0:02:24.3]} 13... Re8 {[%clk 0:02:25.8]} 14.
g3 {[%clk 0:02:24]} 14... Nf8 {[%clk 0:02:18.6]} 15. Bf1 {[%clk 0:02:23.3]}
15... Qd7 {[%clk 0:02:16.3]} 16. Bg2 {[%clk 0:02:22.9]} 16... Bh5 {[%clk
0:02:11.1]} 17. Qc2 {[%clk 0:02:22.2]} 17... Bg6 {[%clk 0:02:05.7]} 18. Ndxe4
{[%clk 0:02:08.8]} 18... Nxe4 {[%clk 0:02:04.1]} 19. Bxe4 {[%clk 0:02:08.5]}
19... Bb4 {[%clk 0:01:56]} 20. Bxg6 {[%clk 0:02:07.6]} 20... Nxg6 {[%clk
0:01:54.6]} 21. Red1 {[%clk 0:02:06.9]} 21... Qh3 {[%clk 0:01:53.2]} 22. Ne2
{[%clk 0:02:02.2]} 22... Bd6 {[%clk 0:01:48]} 23. Kh1 {[%clk 0:01:09.2]} 23...
Nh4 {[%clk 0:01:39.3]} 24. Rg1 {[%clk 0:01:08.7]} 24... Nf3 {[%clk 0:01:21.2]}
25. Rg2 {[%clk 0:01:08.4]} 25... Re6 {[%clk 0:01:16.5]} 26. Ng1 {[%clk
0:00:57.7]} 26... Nxg1 {[%clk 0:01:14.2]} 27. Rcxg1 {[%clk 0:00:57.1]} 27... Qg4
{[%clk 0:01:11.7]} 28. Qd1 {[%clk 0:00:55]} 28... Qe4 {[%clk 0:01:06.7]} 29. Qb1
{[%clk 0:00:52.2]} 29... Qf3 {[%clk 0:01:04.7]} 30. Qd1 {[%clk 0:00:52.3]} 30...
Qe4 {[%clk 0:01:04.3]} 31. d5 {[%clk 0:00:50.4]} 31... Rh6 {[%clk 0:01:00.6]}
32. Qd4 {[%clk 0:00:43.7]} 32... Qf3 {[%clk 0:00:52.3]} 33. Qxg7# {[%clk
0:00:40.8]} 1-0

[Event "*** SCC Grand Prix: Titled Tuesday Blitz"]
[Site "Chess.com"]
[Date "2020.09.29"]
[Round "1"]
[White "alexgo05"]
[Black "Rodalquilar"]
[Result "1-0"]
[WhiteElo "2421"]
[BlackElo "2792"]
[TimeControl "180+1"]
[EndTime "10:06:01 PDT"]
[Termination "alexgo05 won on time"]

1. e4 {[%clk 0:03:00.3]} 1... d5 {[%clk 0:02:54.2]} 2. exd5 {[%clk 0:02:59.1]}
2... Qxd5 {[%clk 0:02:55.1]} 3. Nc3 {[%clk 0:02:58.8]} 3... Qa5 {[%clk
0:02:55.2]} 4. Bc4 {[%clk 0:02:57.3]} 4... Nf6 {[%clk 0:02:55]} 5. d3 {[%clk
0:02:56.1]} 5... Bg4 {[%clk 0:02:54.4]} 6. f3 {[%clk 0:02:53.9]} 6... Bf5 {[%clk
0:02:53.2]} 7. Bd2 {[%clk 0:02:52.4]} 7... Qc5 {[%clk 0:02:18.8]} 8. b4 {[%clk
0:02:38]} 8... Qd6 {[%clk 0:02:00]} 9. b5 {[%clk 0:02:11.3]} 9... Nbd7 {[%clk
0:01:56.2]} 10. Nge2 {[%clk 0:02:10.9]} 10... Ne5 {[%clk 0:01:36.3]} 11. Bb3
{[%clk 0:01:58.9]} 11... e6 {[%clk 0:01:07.1]} 12. Bf4 {[%clk 0:01:46.8]} 12...
Nh5 {[%clk 0:01:02.6]} 13. Be3 {[%clk 0:01:46.8]} 13... Be7 {[%clk 0:00:43.3]}
14. d4 {[%clk 0:01:33.8]} 14... Ng6 {[%clk 0:00:07.5]} 15. g4 {[%clk 0:01:33.2]}
15... Nh4 {[%clk 0:00:07.9]} 16. gxf5 {[%clk 0:01:08.4]} 16... Nxf3+ {[%clk
0:00:07.3]} 17. Kf2 {[%clk 0:01:09.1]} 17... Nh4 {[%clk 0:00:03.4]} 18. Ng3
{[%clk 0:00:58.8]} 18... Nf6 {[%clk 0:00:01.3]} 19. Nce4 {[%clk 0:00:47.6]} 1-0

[Event "*** SCC Grand Prix: Titled Tuesday Blitz"]
[Site "Chess.com"]
[Date "2020.09.29"]
[Round "1"]
[White "Indianlad"]
[Black "fabianvivasz"]
[Result "1-0"]
[WhiteElo "2932"]
[BlackElo "2436"]
[TimeControl "180+1"]
[EndTime "10:06:04 PDT"]
[Termination "Indianlad won on time"]

1. c4 {[%clk 0:03:00.9]} 1... Nf6 {[%clk 0:02:56.5]} 2. g3 {[%clk 0:03:01.4]}
2... c5 {[%clk 0:02:55.8]} 3. Bg2 {[%clk 0:03:01.9]} 3... d5 {[%clk 0:02:55.6]}
4. cxd5 {[%clk 0:03:02]} 4... Nxd5 {[%clk 0:02:56.5]} 5. Nc3 {[%clk 0:03:02.5]}
5... Nc7 {[%clk 0:02:56.1]} 6. Qb3 {[%clk 0:02:58.4]} 6... Nc6 {[%clk
0:02:36.5]} 7. Bxc6+ {[%clk 0:02:58.4]} 7... bxc6 {[%clk 0:02:37.4]} 8. d3
{[%clk 0:02:58.4]} 8... e5 {[%clk 0:02:32.3]} 9. Nf3 {[%clk 0:02:57.6]} 9... f6
{[%clk 0:02:18.6]} 10. Be3 {[%clk 0:02:56.1]} 10... Be6 {[%clk 0:02:10.5]} 11.
Qc2 {[%clk 0:02:52.5]} 11... Nd5 {[%clk 0:01:56.5]} 12. O-O {[%clk 0:02:52.2]}
12... Nxe3 {[%clk 0:01:22]} 13. fxe3 {[%clk 0:02:52.4]} 13... Be7 {[%clk
0:01:19.5]} 14. b3 {[%clk 0:02:46.1]} 14... O-O {[%clk 0:01:17.8]} 15. Rac1
{[%clk 0:02:46.6]} 15... Rb8 {[%clk 0:00:57.6]} 16. Ne4 {[%clk 0:02:43.3]} 16...
Rb5 {[%clk 0:00:55.5]} 17. Nc3 {[%clk 0:02:40.7]} 17... Ra5 {[%clk 0:00:53.3]}
18. Nd2 {[%clk 0:02:39.5]} 18... f5 {[%clk 0:00:47]} 19. Nf3 {[%clk 0:01:56.1]}
19... Qd6 {[%clk 0:00:38.6]} 20. Rcd1 {[%clk 0:01:50.4]} 20... h6 {[%clk
0:00:20]} 21. e4 {[%clk 0:01:49.3]} 21... f4 {[%clk 0:00:18.2]} 22. gxf4 {[%clk
0:01:49.5]} 22... Rxf4 {[%clk 0:00:19.1]} 23. Kh1 {[%clk 0:01:49.9]} 23... Bh3
{[%clk 0:00:14.6]} 24. Rg1 {[%clk 0:01:49.5]} 24... Ra6 {[%clk 0:00:13.3]} 25.
Rg3 {[%clk 0:01:49.3]} 25... Be6 {[%clk 0:00:11.9]} 26. Rdg1 {[%clk 0:01:49.9]}
26... Bf6 {[%clk 0:00:12]} 27. e3 {[%clk 0:01:47]} 27... Rxf3 {[%clk 0:00:09.1]}
28. Rxf3 {[%clk 0:01:47.9]} 28... Kh7 {[%clk 0:00:08.3]} 29. Na4 {[%clk
0:01:38]} 29... Be7 {[%clk 0:00:03.2]} 30. Qg2 {[%clk 0:01:36.9]} 30... Bf8
{[%clk 0:00:02.4]} 31. Qg6+ {[%clk 0:01:33.3]} 31... Kh8 {[%clk 0:00:02.5]} 32.
Qe8 {[%clk 0:01:22.9]} 1-0

[Event "*** SCC Grand Prix: Titled Tuesday Blitz"]
[Site "Chess.com"]
[Date "2020.09.29"]
[Round "1"]
[White "MashaFromRussia"]
[Black "Zavgorodniy_Serg"]
[Result "1-0"]
[WhiteElo "2389"]
[BlackElo "2705"]
[TimeControl "180+1"]
[EndTime "10:06:08 PDT"]
[Termination "MashaFromRussia won by resignation"]

1. d4 {[%clk 0:02:55.6]} 1... Nf6 {[%clk 0:02:58.3]} 2. c4 {[%clk 0:02:55]} 2...
e6 {[%clk 0:02:57.1]} 3. g3 {[%clk 0:02:50.8]} 3... Bb4+ {[%clk 0:02:51.4]} 4.
Bd2 {[%clk 0:02:49.1]} 4... Qe7 {[%clk 0:02:50.1]} 5. Bg2 {[%clk 0:02:48.4]}
5... Nc6 {[%clk 0:02:50]} 6. Nf3 {[%clk 0:02:46.9]} 6... Bxd2+ {[%clk
0:02:48.2]} 7. Nbxd2 {[%clk 0:02:44.9]} 7... d6 {[%clk 0:02:45.6]} 8. O-O {[%clk
0:02:44.8]} 8... O-O {[%clk 0:02:45]} 9. e4 {[%clk 0:02:43]} 9... e5 {[%clk
0:02:45]} 10. d5 {[%clk 0:02:43]} 10... Nb8 {[%clk 0:02:45.1]} 11. Ne1 {[%clk
0:02:43.4]} 11... a5 {[%clk 0:02:42.6]} 12. Nd3 {[%clk 0:02:43.8]} 12... c6
{[%clk 0:02:39.9]} 13. Rc1 {[%clk 0:02:38.2]} 13... cxd5 {[%clk 0:02:38.9]} 14.
cxd5 {[%clk 0:02:37.8]} 14... b6 {[%clk 0:02:39.1]} 15. Qc2 {[%clk 0:02:36.4]}
15... Ba6 {[%clk 0:02:35.3]} 16. Qb1 {[%clk 0:02:24.1]} 16... Nbd7 {[%clk
0:02:33.9]} 17. Rc7 {[%clk 0:02:23.2]} 17... Rfc8 {[%clk 0:02:25.2]} 18. Rfc1
{[%clk 0:02:23.4]} 18... Rxc7 {[%clk 0:02:24.5]} 19. Rxc7 {[%clk 0:02:24.3]}
19... Qd8 {[%clk 0:02:24.8]} 20. Rc6 {[%clk 0:02:22.1]} 20... Nc5 {[%clk
0:02:13.2]} 21. Nxc5 {[%clk 0:02:08.2]} 21... bxc5 {[%clk 0:02:14.1]} 22. Bf1
{[%clk 0:01:53.4]} 22... Bb7 {[%clk 0:02:12.4]} 23. Bb5 {[%clk 0:01:44.7]} 23...
Bxc6 {[%clk 0:02:11]} 24. dxc6 {[%clk 0:01:45.6]} 24... a4 {[%clk 0:01:59.5]}
25. Qd3 {[%clk 0:01:39.6]} 25... a3 {[%clk 0:01:54.8]} 26. bxa3 {[%clk
0:01:38.7]} 26... g6 {[%clk 0:01:48.1]} 27. a4 {[%clk 0:01:38.6]} 27... Kg7
{[%clk 0:01:44.4]} 28. Nc4 {[%clk 0:01:39.1]} 28... d5 {[%clk 0:01:38]} 29. exd5
{[%clk 0:01:38.9]} 29... Qxd5 {[%clk 0:01:38.5]} 30. Qxd5 {[%clk 0:01:28.3]}
30... Nxd5 {[%clk 0:01:32.9]} 31. Nxe5 {[%clk 0:01:22.8]} 31... Nc7 {[%clk
0:01:21.9]} 32. Kg2 {[%clk 0:01:00.5]} 32... f6 {[%clk 0:01:16.1]} 33. Nd7
{[%clk 0:00:58.7]} 33... c4 {[%clk 0:01:13.3]} 34. Nb6 {[%clk 0:00:40.1]} 34...
Rb8 {[%clk 0:01:11.1]} 35. Nxc4 {[%clk 0:00:33.7]} 35... Nxb5 {[%clk 0:01:11.5]}
36. axb5 {[%clk 0:00:34.3]} 36... Rxb5 {[%clk 0:01:12.4]} 37. Nd6 {[%clk
0:00:28.8]} 37... Rc5 {[%clk 0:01:11.8]} 38. c7 {[%clk 0:00:29.3]} 1-0

[Event "*** SCC Grand Prix: Titled Tuesday Blitz"]
[Site "Chess.com"]
[Date "2020.09.29"]
[Round "1"]
[White "ViditYT"]
[Black "MF1966Idrisov"]
[Result "1-0"]
[WhiteElo "2704"]
[BlackElo "2364"]
[TimeControl "180+1"]
[EndTime "10:06:08 PDT"]
[Termination "ViditYT won on time"]

1. d4 {[%clk 0:02:55.1]} 1... d6 {[%clk 0:02:59.5]} 2. Nf3 {[%clk 0:02:53.6]}
2... Bg4 {[%clk 0:02:58.4]} 3. e4 {[%clk 0:02:52.9]} 3... Nd7 {[%clk 0:02:56.5]}
4. h3 {[%clk 0:02:50.6]} 4... Bxf3 {[%clk 0:02:56.1]} 5. Qxf3 {[%clk 0:02:51.5]}
5... e5 {[%clk 0:02:53.7]} 6. c3 {[%clk 0:02:50.8]} 6... Ngf6 {[%clk 0:02:53.5]}
7. Bd3 {[%clk 0:02:48.4]} 7... Be7 {[%clk 0:02:53]} 8. O-O {[%clk 0:02:48.6]}
8... O-O {[%clk 0:02:45.4]} 9. Nd2 {[%clk 0:02:46.8]} 9... c6 {[%clk 0:02:44.8]}
10. Re1 {[%clk 0:02:38.9]} 10... Qc7 {[%clk 0:02:44.5]} 11. Nf1 {[%clk
0:02:38.8]} 11... Rfe8 {[%clk 0:02:44.4]} 12. Ng3 {[%clk 0:02:38]} 12... Nf8
{[%clk 0:02:38.4]} 13. Be3 {[%clk 0:02:36.7]} 13... Ng6 {[%clk 0:02:37.2]} 14.
Rad1 {[%clk 0:02:36.3]} 14... Rad8 {[%clk 0:02:34.2]} 15. Nf5 {[%clk 0:02:31.4]}
15... Bf8 {[%clk 0:02:30.6]} 16. Bg5 {[%clk 0:02:26]} 16... Re6 {[%clk
0:01:35.7]} 17. d5 {[%clk 0:02:10.7]} 17... Ree8 {[%clk 0:01:25.8]} 18. Bxf6
{[%clk 0:02:09.8]} 18... gxf6 {[%clk 0:01:24.9]} 19. Bc4 {[%clk 0:02:06.5]}
19... b5 {[%clk 0:01:10.4]} 20. Bb3 {[%clk 0:02:05.1]} 20... c5 {[%clk
0:01:10.6]} 21. g3 {[%clk 0:01:52.8]} 21... Kh8 {[%clk 0:01:00.3]} 22. Bc2
{[%clk 0:01:51.1]} 22... Bg7 {[%clk 0:00:54.5]} 23. h4 {[%clk 0:01:49]} 23...
Ne7 {[%clk 0:00:53.9]} 24. Ne3 {[%clk 0:01:47.9]} 24... a5 {[%clk 0:00:42]} 25.
a4 {[%clk 0:01:45.9]} 25... b4 {[%clk 0:00:38.4]} 26. Bd3 {[%clk 0:01:40.2]}
26... bxc3 {[%clk 0:00:37.5]} 27. bxc3 {[%clk 0:01:39.8]} 27... Rb8 {[%clk
0:00:36.1]} 28. Bb5 {[%clk 0:01:40]} 28... Rg8 {[%clk 0:00:35.8]} 29. Kh2 {[%clk
0:01:38.8]} 29... Nc8 {[%clk 0:00:30.7]} 30. Qh5 {[%clk 0:01:27.4]} 30... Qe7
{[%clk 0:00:26.3]} 31. Nf5 {[%clk 0:01:26.6]} 31... Qf8 {[%clk 0:00:26]} 32. Rb1
{[%clk 0:01:26.6]} 32... Na7 {[%clk 0:00:25.1]} 33. Bc4 {[%clk 0:01:25.6]} 33...
Rxb1 {[%clk 0:00:06.9]} 34. Rxb1 {[%clk 0:01:26.5]} 34... Qd8 {[%clk 0:00:02.9]}
35. Qxf7 {[%clk 0:01:25.4]} 1-0

[Event "*** SCC Grand Prix: Titled Tuesday Blitz"]
[Site "Chess.com"]
[Date "2020.09.29"]
[Round "1"]
[White "pavelalexandru07"]
[Black "GoltsevDmitry2000"]
[Result "0-1"]
[WhiteElo "2251"]
[BlackElo "2570"]
[TimeControl "180+1"]
[EndTime "10:06:09 PDT"]
[Termination "GoltsevDmitry2000 won by resignation"]

1. e4 {[%clk 0:03:00.9]} 1... c5 {[%clk 0:02:43.8]} 2. Nf3 {[%clk 0:03:00.1]}
2... e6 {[%clk 0:02:44]} 3. d4 {[%clk 0:02:59.6]} 3... cxd4 {[%clk 0:02:44.9]}
4. Nxd4 {[%clk 0:02:59.2]} 4... a6 {[%clk 0:02:44.9]} 5. c4 {[%clk 0:02:58.6]}
5... Qc7 {[%clk 0:02:44.7]} 6. Nc3 {[%clk 0:02:58.3]} 6... Nf6 {[%clk
0:02:44.2]} 7. a3 {[%clk 0:02:57.8]} 7... Nc6 {[%clk 0:02:43.7]} 8. Be3 {[%clk
0:02:57.2]} 8... Ne5 {[%clk 0:02:39]} 9. Be2 {[%clk 0:02:44.9]} 9... Nxc4 {[%clk
0:02:31]} 10. Bxc4 {[%clk 0:02:44]} 10... Qxc4 {[%clk 0:02:31.9]} 11. Rc1 {[%clk
0:02:44.3]} 11... Qc7 {[%clk 0:02:27.6]} 12. Ncb5 {[%clk 0:02:35.6]} 12... Qb8
{[%clk 0:02:05.8]} 13. Nc7+ {[%clk 0:02:30.7]} 13... Kd8 {[%clk 0:02:05.3]} 14.
Nxa8 {[%clk 0:02:19.7]} 14... Qxa8 {[%clk 0:02:06.2]} 15. f3 {[%clk 0:02:17.3]}
15... Qb8 {[%clk 0:02:02]} 16. Ne2 {[%clk 0:01:31.3]} 16... Bd6 {[%clk
0:01:52.3]} 17. Qc2 {[%clk 0:01:25.6]} 17... Ke7 {[%clk 0:01:50.9]} 18. f4
{[%clk 0:01:25.8]} 18... e5 {[%clk 0:01:49.7]} 19. f5 {[%clk 0:01:24.2]} 19...
b6 {[%clk 0:01:47.1]} 20. Nc3 {[%clk 0:01:05.3]} 20... Bb7 {[%clk 0:01:41.9]}
21. O-O {[%clk 0:00:54.3]} 21... Rc8 {[%clk 0:01:40.4]} 22. Qd3 {[%clk
0:00:52.9]} 22... Bc6 {[%clk 0:01:38.4]} 23. Rfd1 {[%clk 0:00:50.1]} 23... Ng4
{[%clk 0:01:37.1]} 24. Nd5+ {[%clk 0:00:37.5]} 24... Bxd5 {[%clk 0:01:33.1]} 25.
Rxc8 {[%clk 0:00:37.9]} 25... Qxc8 {[%clk 0:01:29.8]} 26. Qxd5 {[%clk
0:00:36.8]} 26... Qc7 {[%clk 0:01:27.1]} 27. Bg5+ {[%clk 0:00:29.1]} 27... f6
{[%clk 0:01:25.4]} 28. Bh4 {[%clk 0:00:29.1]} 28... Ne3 {[%clk 0:01:17.9]} 29.
Qg8 {[%clk 0:00:28.4]} 29... Nxd1 {[%clk 0:01:14]} 30. Qxg7+ {[%clk 0:00:28.5]}
30... Ke8 {[%clk 0:01:12.6]} 31. Bxf6 {[%clk 0:00:09.9]} 31... Qc5+ {[%clk
0:01:11.6]} 32. Kh1 {[%clk 0:00:10.4]} 0-1

[Event "*** SCC Grand Prix: Titled Tuesday Blitz"]
[Site "Chess.com"]
[Date "2020.09.29"]
[Round "1"]
[White "Eliwood44"]
[Black "exoticprincess"]
[Result "0-1"]
[WhiteElo "2428"]
[BlackElo "2897"]
[TimeControl "180+1"]
[EndTime "10:06:11 PDT"]
[Termination "exoticprincess won by resignation"]

1. d4 {[%clk 0:03:00.9]} 1... d5 {[%clk 0:02:58.7]} 2. Nf3 {[%clk 0:02:59.8]}
2... c6 {[%clk 0:02:58.9]} 3. c4 {[%clk 0:02:59.7]} 3... Nf6 {[%clk 0:02:59.2]}
4. Qc2 {[%clk 0:02:59.9]} 4... g6 {[%clk 0:02:58.6]} 5. Nc3 {[%clk 0:02:59.7]}
5... Bg7 {[%clk 0:02:58.5]} 6. Bf4 {[%clk 0:02:59.4]} 6... O-O {[%clk
0:02:58.4]} 7. e3 {[%clk 0:02:59.7]} 7... Bf5 {[%clk 0:02:57.2]} 8. Qb3 {[%clk
0:02:59.4]} 8... b6 {[%clk 0:02:57.5]} 9. h3 {[%clk 0:02:56.4]} 9... Ne4 {[%clk
0:02:56]} 10. cxd5 {[%clk 0:02:54.5]} 10... Nxc3 {[%clk 0:02:55.9]} 11. bxc3
{[%clk 0:02:53.3]} 11... cxd5 {[%clk 0:02:54.6]} 12. Ne5 {[%clk 0:02:51.2]}
12... Bxe5 {[%clk 0:02:52.3]} 13. Bxe5 {[%clk 0:02:49.8]} 13... Nc6 {[%clk
0:02:53.2]} 14. Bh2 {[%clk 0:02:48.4]} 14... Na5 {[%clk 0:02:51.8]} 15. Qb2
{[%clk 0:02:43.8]} 15... Rc8 {[%clk 0:02:50.9]} 16. Rc1 {[%clk 0:02:39.5]} 16...
Nc4 {[%clk 0:02:48.5]} 17. Bxc4 {[%clk 0:02:39]} 17... Rxc4 {[%clk 0:02:47.8]}
18. O-O {[%clk 0:02:39.5]} 18... Qd7 {[%clk 0:02:47.6]} 19. Qa3 {[%clk
0:02:17.1]} 19... Rfc8 {[%clk 0:02:46.2]} 20. Bg3 {[%clk 0:02:11.1]} 20... h5
{[%clk 0:02:43.8]} 21. Rfe1 {[%clk 0:02:10.6]} 21... Ra4 {[%clk 0:02:36.1]} 22.
Qb3 {[%clk 0:02:08]} 22... Bd3 {[%clk 0:02:36.3]} 23. Qb2 {[%clk 0:01:58]} 23...
Bc4 {[%clk 0:02:35.9]} 24. a3 {[%clk 0:01:56.3]} 24... Ra5 {[%clk 0:02:35.8]}
25. e4 {[%clk 0:01:54.9]} 25... dxe4 {[%clk 0:02:24.8]} 26. Rxe4 {[%clk
0:01:54.2]} 26... Bd5 {[%clk 0:01:52.6]} 27. Re5 {[%clk 0:01:31.6]} 27... f6
{[%clk 0:01:51.1]} 28. Re3 {[%clk 0:01:29.9]} 28... Kf7 {[%clk 0:01:47.7]} 29.
Rce1 {[%clk 0:01:28.9]} 29... e6 {[%clk 0:01:46.8]} 30. f4 {[%clk 0:00:56.6]}
30... Qb5 {[%clk 0:01:40.2]} 31. Qf2 {[%clk 0:00:53.6]} 31... Rxa3 {[%clk
0:01:37]} 32. f5 {[%clk 0:00:53.6]} 32... Ra2 {[%clk 0:01:32.2]} 33. fxe6+
{[%clk 0:00:44.7]} 33... Ke7 {[%clk 0:01:32.2]} 34. R3e2 {[%clk 0:00:27.6]}
34... Rxe2 {[%clk 0:01:32]} 35. Rxe2 {[%clk 0:00:28.5]} 35... Rxc3 {[%clk
0:01:30.5]} 36. Bd6+ {[%clk 0:00:23.9]} 36... Kxd6 {[%clk 0:01:30.2]} 37. e7
{[%clk 0:00:24.4]} 37... Bc6 {[%clk 0:01:21.8]} 38. Qxf6+ {[%clk 0:00:23.5]}
38... Kc7 {[%clk 0:01:20.9]} 39. Qe5+ {[%clk 0:00:22.5]} 39... Qxe5 {[%clk
0:01:20.6]} 40. Rxe5 {[%clk 0:00:21.6]} 40... Be8 {[%clk 0:01:18.8]} 41. Rd5
{[%clk 0:00:21.3]} 41... Re3 {[%clk 0:01:16.8]} 0-1

[Event "*** SCC Grand Prix: Titled Tuesday Blitz"]
[Site "Chess.com"]
[Date "2020.09.29"]
[Round "1"]
[White "renehp"]
[Black "ChessArchitect64"]
[Result "1-0"]
[WhiteElo "2470"]
[BlackElo "1986"]
[TimeControl "180+1"]
[EndTime "10:06:14 PDT"]
[Termination "renehp won by checkmate"]

1. e4 {[%clk 0:03:00.4]} 1... c5 {[%clk 0:02:59]} 2. Nf3 {[%clk 0:03:00.1]} 2...
d6 {[%clk 0:02:58.9]} 3. d4 {[%clk 0:03:00.3]} 3... cxd4 {[%clk 0:02:59.1]} 4.
Nxd4 {[%clk 0:03:01.2]} 4... Nf6 {[%clk 0:02:59]} 5. Nc3 {[%clk 0:03:01.5]} 5...
Nc6 {[%clk 0:02:58.9]} 6. Bc4 {[%clk 0:03:00.5]} 6... e6 {[%clk 0:02:57.6]} 7.
Be3 {[%clk 0:02:59.6]} 7... Be7 {[%clk 0:02:57.6]} 8. Qe2 {[%clk 0:02:59.6]}
8... O-O {[%clk 0:02:57.6]} 9. O-O-O {[%clk 0:02:59.3]} 9... a6 {[%clk
0:02:55.3]} 10. Bb3 {[%clk 0:02:57.8]} 10... Qc7 {[%clk 0:02:54.6]} 11. g4
{[%clk 0:02:57.6]} 11... b5 {[%clk 0:02:47.2]} 12. g5 {[%clk 0:02:55]} 12... Ne8
{[%clk 0:02:46.6]} 13. Rhg1 {[%clk 0:02:44.2]} 13... b4 {[%clk 0:02:30.9]} 14.
Nd5 {[%clk 0:02:42.8]} 14... exd5 {[%clk 0:02:29.3]} 15. Nxc6 {[%clk 0:02:41.1]}
15... Bb7 {[%clk 0:02:11.6]} 16. Nxe7+ {[%clk 0:02:38.4]} 16... Qxe7 {[%clk
0:02:11.3]} 17. Bxd5 {[%clk 0:02:36.3]} 17... Bxd5 {[%clk 0:02:10.7]} 18. exd5
{[%clk 0:02:34]} 18... Qd7 {[%clk 0:01:19.6]} 19. h4 {[%clk 0:02:32.1]} 19...
Qb5 {[%clk 0:01:18.4]} 20. Qg4 {[%clk 0:02:31.8]} 20... Rd8 {[%clk 0:01:05.3]}
21. h5 {[%clk 0:02:29.2]} 21... Qd7 {[%clk 0:01:05]} 22. Qd4 {[%clk 0:02:27.7]}
22... a5 {[%clk 0:00:49.1]} 23. h6 {[%clk 0:02:23]} 23... g6 {[%clk 0:00:49]}
24. Rge1 {[%clk 0:02:19.6]} 24... Qf5 {[%clk 0:00:18]} 25. Kb1 {[%clk 0:02:16]}
25... f6 {[%clk 0:00:15.3]} 26. f4 {[%clk 0:02:12]} 26... fxg5 {[%clk 0:00:13]}
27. fxg5 {[%clk 0:02:10.1]} 27... Rd7 {[%clk 0:00:09.5]} 28. b3 {[%clk
0:02:09.2]} 28... Rdf7 {[%clk 0:00:08.5]} 29. Qb6 {[%clk 0:02:02.2]} 29... Qd7
{[%clk 0:00:06.6]} 30. Qxa5 {[%clk 0:01:59.6]} 30... Qb7 {[%clk 0:00:06.6]} 31.
Qa4 {[%clk 0:01:56.7]} 31... Rf5 {[%clk 0:00:05.6]} 32. Qc6 {[%clk 0:01:54.5]}
32... Qxc6 {[%clk 0:00:04.8]} 33. dxc6 {[%clk 0:01:55.4]} 33... d5 {[%clk
0:00:05]} 34. Bc5 {[%clk 0:01:52.9]} 34... Nc7 {[%clk 0:00:03]} 35. Bxf8 {[%clk
0:01:52.5]} 35... Rxf8 {[%clk 0:00:03.9]} 36. Re7 {[%clk 0:01:51.3]} 36... Nb5
{[%clk 0:00:04.2]} 37. Kb2 {[%clk 0:01:46.1]} 37... Nc3 {[%clk 0:00:04.4]} 38.
Rde1 {[%clk 0:01:45.9]} 38... d4 {[%clk 0:00:02.5]} 39. Rg7+ {[%clk 0:01:45.6]}
39... Kh8 {[%clk 0:00:02.6]} 40. Ree7 {[%clk 0:01:45.9]} 40... Rd8 {[%clk
0:00:02.5]} 41. Rxh7+ {[%clk 0:01:45.8]} 41... Kg8 {[%clk 0:00:02.7]} 42. Reg7+
{[%clk 0:01:46.2]} 42... Kf8 {[%clk 0:00:03.2]} 43. Rh8# {[%clk 0:01:46.7]} 1-0